bitfinex/quotes_SOLUSD_20240821
["timestamp","ask_amount","ask_price","bid_price","bid_amount"]
[1724281478516,7.30832334,143.12,143.05,20.860215]
[1724281479642,7.30832334,143.12,143.06,0.12549]
[1724281480438,13.15,143.1,143.05,0.860215]
[1724281481514,7.30880336,143.11,143.05,0.860215]
[1724281482115,58.15,143.1,143.05,0.860215]
[1724281482316,13.15,143.1,143.05,0.860215]
[1724281488026,13.15,143.08,143.05,0.860215]
[1724281489628,29.6864,143.1,143.05,0.860215]
[1724281491550,7.30982877,143.09,143.05,0.860215]
[1724281500348,1.74761569,143.08,143.05,0.860215]
[1724281502759,7.30982877,143.09,143.05,0.860215]
[1724281507487,13.15,143.12,143.05,0.860215]
[1724281507658,45.0,143.11,143.05,0.860215]
[1724281507977,52.30894752,143.11,143.05,0.860215]
[1724281508278,7.30894752,143.11,143.06,13.15]
[1724281508485,7.30894752,143.11,143.07,0.12549]
[1724281511789,19.1829,143.15,143.07,0.25098]
[1724281512082,7.30704449,143.14,143.07,0.25098]
[1724281512684,7.30704449,143.14,143.07,0.12549]
[1724281522503,7.30704449,143.14,143.07,0.25098]
[1724281524103,13.15,143.11,143.06,20.0]
[1724281524302,1.74725898,143.1,143.06,20.0]
[1724281524484,13.15,143.11,143.06,20.0]
[1724281524802,20.45858324,143.11,143.06,20.0]
[1724281525110,1.74722005,143.1,143.05,16.390415]
[1724281525404,1.74722005,143.1,143.05,0.860215]
[1724281525579,13.15,143.08,143.05,0.860215]
[1724281525781,1.74764488,143.07,143.05,0.860215]
[1724281525977,13.15,143.06,143.05,0.860215]
[1724281527892,58.15,143.06,143.05,0.860215]
[1724281530690,13.15,143.08,143.05,0.860215]
[1724281530894,45.0,143.07,143.05,0.860215]
[1724281531613,13.15,143.08,143.05,0.860215]
[1724281533904,13.15,143.1,143.05,0.860215]
[1724281535042,7.30761371,143.09,143.05,0.860215]
[1724281537026,13.15,143.06,143.05,0.860215]
[1724281537323,58.15,143.06,143.05,0.860215]
[1724281537495,13.15,143.08,143.05,0.860215]
[1724281537691,45.0,143.07,143.05,0.860215]
[1724281540232,13.15,143.06,143.05,0.860215]
[1724281540540,58.15,143.06,143.05,0.860215]
[1724281541399,74.318,143.06,143.05,0.860215]
[1724281541605,74.44349,143.06,143.05,0.860215]
[1724281541919,81.43349,143.06,143.05,0.860215]
[1724281542115,74.56898,143.06,142.97,23.1277]
[1724281542325,13.15,143.03,142.94,10.04346815]
[1724281542536,1.74863732,143.02,142.94,10.04346815]
[1724281542827,13.15,143.03,142.94,10.04346815]
[1724281543205,13.15,143.03,142.95,20.0]
[1724281543607,13.15,143.03,142.95,33.15]
[1724281543825,1.74852293,143.02,142.94,10.04346815]
[1724281544137,13.15,143.03,142.94,23.19346815]
[1724281544432,45.0,143.02,142.94,23.19346815]
[1724281544742,46.74871631,143.02,142.94,23.19346815]
[1724281544925,14.89871819,143.03,142.94,23.19346815]
[1724281545135,13.15,143.03,142.95,20.0]
[1724281545310,7.30383139,143.02,142.95,20.0]
[1724281545835,7.30383139,143.02,142.96,13.15]
[1724281549040,7.30383139,143.02,142.97,0.12549]
[1724281550451,7.30383139,143.02,142.96,13.27549]
[1724281551954,7.30383139,143.02,142.99,15.4734]
[1724281552133,19.3867,143.08,143.0,13.27549]
[1724281552448,7.30194931,143.06,143.0,13.27549]
[1724281553534,1.74790642,143.05,143.0,13.27549]
[1724281553741,7.30194931,143.06,143.0,13.27549]
[1724281554434,1.74798163,143.05,143.0,13.27549]
[1724281555350,1.74798163,143.05,143.0,13.15]
[1724281555649,7.30194931,143.06,143.0,13.15]
[1724281555961,7.30194931,143.06,143.04,13.15]
[1724281556133,15.3324,143.1,143.04,13.15]
[1724281556532,7.30039284,143.09,143.04,13.15]
[1724281556834,9.0480641,143.09,143.02,13.15]
[1724281557038,7.30039284,143.09,143.02,13.15]
[1724281557441,7.30039284,143.09,143.04,13.15]
[1724281558531,7.30039284,143.09,143.06,13.15]
[1724281561954,7.30039284,143.09,143.03,6.18179]
[1724281562161,7.30039284,143.09,142.99,15.4734]
[1724281562162,1.74738836,143.08,143.02,13.15]
[1724281562464,7.30039284,143.09,143.02,13.15]
[1724281562835,1.74762208,143.08,143.02,13.15]
[1724281563170,1.74778007,143.07,143.02,13.15]
[1724281563463,1.74778007,143.07,143.0,13.15]
[1724281563630,9.04829249,143.09,143.0,13.15]
[1724281567265,7.30039284,143.09,143.0,13.15]
[1724281568839,7.30039284,143.09,143.02,13.15]
[1724281569037,17.55569627,143.08,142.99,15.59889]
[1724281569261,46.74808119,143.07,142.99,13.15]
[1724281569639,7.3009009,143.06,142.99,13.15]
[1724281569953,1.74819284,143.05,142.99,13.15]
[1724281570157,1.74819264,143.04,142.99,13.15]
[1724281572168,1.74819264,143.04,142.98,13.15]
[1724281574566,7.3009009,143.06,143.0,13.15]
[1724281576540,1.74794613,143.05,143.0,13.15]
[1724281577558,7.3009009,143.06,143.0,13.15]
[1724281577751,1.74798117,143.05,142.99,13.15]
[1724281578065,1.74809133,143.04,142.99,13.15]
[1724281579560,7.3009009,143.06,142.99,13.15]
[1724281580445,1.74805837,143.05,143.01,13.15]
[1724281581876,7.3009009,143.06,143.01,13.15]
[1724281584868,7.3009009,143.06,143.03,13.15]
[1724281585172,15.8078,143.08,143.03,13.15]
[1724281585549,23.11103487,143.08,143.03,13.15]
[1724281586275,23.11103487,143.08,143.05,13.15]
[1724281586974,23.11103487,143.08,143.03,13.15]
[1724281589359,15.8078,143.08,143.05,13.15]
[1724281589563,6.1188,143.1,143.05,13.15]
[1724281594553,6.1188,143.1,143.02,0.25098]
[1724281594758,6.1188,143.1,143.06,13.15]
[1724281596279,7.86612477,143.1,143.03,13.15]
[1724281597986,6.1188,143.1,143.05,13.15]
[1724281603868,6.1188,143.1,143.07,13.15]
[1724281604079,15.2631,143.11,143.07,13.15]
[1724281604281,7.30138625,143.12,143.09,13.15]
[1724281605659,7.30138625,143.12,143.07,13.15]
[1724281606878,7.30138625,143.12,143.09,13.15]
[1724281607686,7.30138625,143.12,143.06,0.12549]
[1724281607889,7.30138625,143.12,143.08,13.15]
[1724281608968,7.30138625,143.12,143.1,13.15]
[1724281617767,7.30138625,143.12,143.09,0.12549]
[1724281619272,1.74681736,143.11,143.06,13.15]
[1724281619601,16.4003,143.1,143.04,13.15]
[1724281619778,16.4003,143.1,143.05,20.0]
[1724281622289,1.74728929,143.09,143.02,23.19346815]
[1724281622498,16.4003,143.1,143.04,13.15]
[1724281625109,16.4003,143.1,143.05,0.25098]
[1724281626095,16.4003,143.1,143.05,45.25098]
[1724281626504,16.4003,143.1,143.05,0.25098]
[1724281627005,16.4003,143.1,143.06,13.15]
[1724281628703,6.3008,143.12,143.07,0.25098]
[1724281629998,6.3008,143.12,143.07,0.12549]
[1724281630505,6.3008,143.12,143.07,0.25098]
[1724281632209,6.3008,143.12,143.08,13.15]
[1724281640215,15.7936,143.13,143.03,44.97106366]
[1724281640216,15.7936,143.13,143.1,13.15]
[1724281647027,15.7936,143.13,143.09,0.12549]
[1724281647314,15.7936,143.13,143.07,13.15]
[1724281648621,15.7936,143.13,143.08,0.25098]
[1724281648998,15.7936,143.13,143.09,13.15]
[1724281651898,15.7936,143.13,143.1,0.25098]
[1724281653023,7.307067,143.14,143.11,13.15]
[1724281653201,7.307067,143.14,143.12,0.12549]
[1724281653821,7.307067,143.14,143.11,13.15]
[1724281655219,9.05356789,143.14,143.05,27.20607635]
[1724281655426,7.307067,143.14,143.06,33.15]
[1724281655920,7.307067,143.14,143.08,13.15]
[1724281656831,7.307067,143.14,143.09,0.25098]
[1724281658925,9.05378809,143.14,143.09,0.12549]
[1724281659128,9.05378809,143.14,143.06,33.15]
[1724281659423,9.05378809,143.14,143.07,45.25098]
[1724281659722,7.307067,143.14,143.07,45.25098]
[1724281660937,7.307067,143.14,143.08,13.15]
[1724281661232,7.307067,143.14,143.09,1.64831667]
[1724281661425,7.307067,143.14,143.09,0.25098]
[1724281661597,7.307067,143.14,143.09,45.25098]
[1724281664539,7.307067,143.14,143.11,13.15]
[1724281665042,7.307067,143.14,143.12,0.12549]
[1724281670030,7.307067,143.14,143.12,0.25098]
[1724281670722,7.307067,143.14,143.09,45.0]
[1724281671031,7.307067,143.14,143.1,20.25098]
[1724281671410,7.307067,143.14,143.1,13.40098]
[1724281671916,7.307067,143.14,143.1,0.25098]
[1724281672140,7.307067,143.14,143.1,45.25098]
[1724281676440,7.307067,143.14,143.1,0.25098]
[1724281676743,7.307067,143.14,143.07,13.15]
[1724281676941,7.307067,143.14,143.08,65.25098]
[1724281684054,7.307067,143.14,143.09,13.15]
[1724281684356,7.307067,143.14,143.1,0.25098]
[1724281684852,7.307067,143.14,143.1,1.64823275]
[1724281685030,7.307067,143.14,143.1,46.64823275]
[1724281685232,7.307067,143.14,143.1,45.25098]
[1724281686152,7.307067,143.14,143.1,0.25098]
[1724281687058,7.307067,143.14,143.09,0.25098]
[1724281690658,9.05378596,143.14,143.09,0.12549]
[1724281690847,9.05378596,143.14,143.08,20.0]
[1724281691050,9.05378596,143.14,143.07,13.27549]
[1724281691222,9.05378596,143.14,143.08,0.25098]
[1724281695628,7.307067,143.14,143.08,0.25098]
[1724281695828,7.307067,143.14,143.08,45.25098]
[1724281696648,7.307067,143.14,143.09,14.54734209]
[1724281697955,7.307067,143.14,143.1,0.12549]
[1724281698131,7.307067,143.14,143.1,1.64824232]
[1724281699262,7.307067,143.14,143.1,0.25098]
[1724281702178,7.307067,143.14,143.1,1.64825683]
[1724281702469,7.307067,143.14,143.11,13.15]
[1724281703664,7.307067,143.14,143.12,0.25098]
[1724281707991,7.307067,143.14,143.13,13.15]
[1724281708281,7.307067,143.14,143.13,98.40098]
[1724281708570,7.307067,143.14,143.13,78.40098]
[1724281711078,7.307067,143.14,143.13,79.79736635]
[1724281711281,7.307067,143.14,143.13,78.40098]
[1724281712351,7.307067,143.14,143.13,20.0]
[1724281712651,7.307067,143.14,143.12,33.15]
[1724281713370,7.307067,143.14,143.12,20.0]
[1724281713748,7.307067,143.14,143.13,45.0]
[1724281713949,7.307067,143.14,143.13,65.25098]
[1724281721669,7.307067,143.14,143.13,85.25098]
[1724281721868,7.307067,143.14,143.13,65.25098]
[1724281729285,7.307067,143.14,143.13,45.0]
[1724281729491,23.212467,143.14,143.06,33.15]
[1724281729669,13.15,143.13,143.05,16.655]
[1724281729864,29.317167,143.14,143.05,16.655]
[1724281730070,13.15,143.13,143.05,16.655]
[1724281730272,13.15,143.13,143.05,26.75212926]
[1724281730680,13.15,143.13,143.06,10.09712926]
[1724281731087,13.15,143.13,143.07,0.25098]
[1724281731296,13.15,143.13,143.07,45.25098]
[1724281732070,13.15,143.13,143.07,0.25098]
[1724281732267,13.15,143.13,143.07,30.34810926]
[1724281732467,13.15,143.13,143.08,45.0]
[1724281732673,13.15,143.13,143.09,0.12549]
[1724281733075,13.15,143.13,143.07,20.12549]
[1724281733378,13.15,143.13,143.08,0.12549]
[1724281733580,13.15,143.13,143.07,45.25098]
[1724281733999,29.317167,143.14,143.07,45.25098]
[1724281735182,29.317167,143.14,143.07,58.40098]
[1724281736574,29.317167,143.14,143.08,20.0]
[1724281736771,29.317167,143.14,143.09,45.25098]
[1724281738486,29.317167,143.14,143.09,58.40098]
[1724281740096,29.317167,143.14,143.09,45.25098]
[1724281746204,29.317167,143.14,143.09,58.40098]
[1724281748105,29.317167,143.14,143.09,45.25098]
[1724281753997,23.212467,143.14,143.09,45.25098]
[1724281756130,7.307067,143.14,143.12,13.15]
[1724281756296,7.307067,143.14,143.13,65.25098]
[1724281756617,7.307067,143.14,143.13,45.25098]
[1724281756818,7.307067,143.14,143.13,20.25098]
[1724281757197,7.307067,143.14,143.13,65.25098]
[1724281758817,7.307067,143.14,143.13,78.40098]
[1724281758988,7.307067,143.14,143.13,79.79789098]
[1724281759187,7.307067,143.14,143.13,78.40098]
[1724281759407,7.307067,143.14,143.13,79.79782032]
[1724281759596,7.307067,143.14,143.13,78.40098]
[1724281764014,7.307067,143.14,143.13,65.25098]
[1724281775041,7.307067,143.14,143.13,78.40098]
[1724281777953,7.307067,143.14,143.13,20.12549]
[1724281778266,7.307067,143.14,143.13,20.0]
[1724281778445,7.307067,143.14,143.11,20.0]
[1724281778764,7.307067,143.14,143.1,20.0]
[1724281779661,7.307067,143.14,143.11,5.16093118]
[1724281779865,7.307067,143.14,143.12,20.12549]
[1724281780049,7.307067,143.14,143.13,45.12549]
[1724281780246,7.307067,143.14,143.13,65.25098]
[1724281795752,7.307067,143.14,143.13,66.64794544]
[1724281796081,7.307067,143.14,143.13,78.40098]
[1724281796381,6.4884,143.21,143.16,20.0]
[1724281796684,6.4884,143.21,143.17,45.25098]
[1724281796856,13.15,143.2,143.17,0.12549]
[1724281797174,6.4884,143.21,143.14,20.0]
[1724281797475,13.15,143.2,143.14,20.0]
[1724281797782,13.15,143.2,143.13,20.0]
[1724281798271,13.15,143.2,143.14,45.0]
[1724281798586,13.15,143.2,143.15,0.25098]
[1724281800177,6.4884,143.21,143.15,0.25098]
[1724281800357,13.15,143.19,143.15,0.25098]
[1724281802796,6.4884,143.21,143.15,0.25098]
[1724281803082,19.6384,143.21,143.15,0.25098]
[1724281803254,13.15,143.19,143.15,0.12549]
[1724281803454,13.15,143.19,143.14,0.25098]
[1724281804170,13.15,143.17,143.11,20.0]
[1724281804373,6.5057,143.17,143.08,44.22219744]
[1724281804585,13.15,143.16,143.09,5.03587671]
[1724281804893,13.15,143.16,143.1,5.03587671]
[1724281805059,13.15,143.16,143.11,5.03587671]
[1724281805265,13.15,143.16,143.08,36.3998]
[1724281805454,13.15,143.16,143.09,5.03588664]
[1724281805650,13.15,143.16,143.1,5.03588664]
[1724281805872,13.15,143.16,143.11,5.03588664]
[1724281806080,13.15,143.16,143.08,36.3998]
[1724281806273,19.6557,143.17,143.09,26.43302592]
[1724281806467,19.6557,143.17,143.1,5.03572045]
[1724281806776,6.5057,143.17,143.11,51.55833929]
[1724281806961,15.8913,143.18,143.12,1.39710399]
[1724281807154,7.30485338,143.16,143.13,0.25098]
[1724281807353,7.30485338,143.16,143.13,45.25098]
[1724281810755,7.30485338,143.16,143.14,1.39693191]
[1724281810951,7.30485338,143.16,143.15,0.12549]
[1724281811175,7.30485338,143.16,143.15,1.64791121]
[1724281811481,7.30485338,143.16,143.15,0.25098]
[1724281812987,7.30485338,143.16,143.15,1.6478309]
[1724281813982,7.30485338,143.16,143.15,0.25098]
[1724281814993,7.30485338,143.16,143.15,1.64776162]
[1724281815180,7.30485338,143.16,143.15,46.64776162]
[1724281816393,7.30485338,143.16,143.15,45.25098]
[1724281816594,7.30485338,143.16,143.15,65.25098]
[1724281822102,7.30485338,143.16,143.15,66.64769341]
[1724281822476,7.30485338,143.16,143.15,65.25098]
[1724281822993,15.54075879,143.25,143.15,65.25098]
[1724281822994,2.39075879,143.25,143.17,20.0]
[1724281823204,16.1784,143.26,143.19,13.15]
[1724281823509,18.50528828,143.26,143.2,45.25098]
[1724281823799,31.65528828,143.26,143.2,45.25098]
[1724281824182,18.50528828,143.26,143.2,45.25098]
[1724281824692,18.50528828,143.26,143.21,45.0]
[1724281824877,18.50528828,143.26,143.22,0.25098]
[1724281825071,18.50528828,143.26,143.2,0.25098]
[1724281825396,13.15,143.23,143.18,20.0]
[1724281825601,6.9818,143.23,143.16,20.0]
[1724281825900,13.15,143.21,143.16,20.0]
[1724281826114,13.15,143.22,143.16,20.0]
[1724281826602,32.84,143.22,143.15,20.0]
[1724281827314,32.84,143.22,143.16,45.0]
[1724281827681,32.84,143.22,143.17,20.0]
[1724281828001,32.84,143.22,143.18,0.12549]
[1724281828304,32.84,143.22,143.18,0.25098]
[1724281829604,32.84,143.22,143.16,45.0]
[1724281829605,1.74571994,143.21,143.16,45.0]
[1724281829782,32.84,143.22,143.17,0.25098]
[1724281829981,34.58584093,143.22,143.17,0.25098]
[1724281830196,1.74584093,143.22,143.17,0.25098]
[1724281830398,32.84,143.24,143.17,0.25098]
[1724281831112,39.8213,143.24,143.17,0.25098]
[1724281832504,6.9818,143.23,143.17,0.25098]
[1724281833795,7.30357424,143.22,143.17,0.25098]
[1724281835181,7.30357424,143.22,143.17,20.25098]
[1724281835382,7.30357424,143.22,143.18,45.0]
[1724281835582,7.30357424,143.22,143.19,0.25098]
[1724281835883,7.30357424,143.22,143.19,21.64727059]
[1724281836213,7.30357424,143.22,143.2,45.0]
[1724281836387,7.30357424,143.22,143.21,0.25098]
[1724281836591,7.30357424,143.22,143.17,16.5797]
[1724281836794,14.28617424,143.22,143.18,0.12549]
[1724281837016,1.74572565,143.21,143.13,22.7711]
[1724281837406,8.72882565,143.21,143.13,22.7711]
[1724281837721,8.7289367,143.21,143.13,22.7711]
[1724281838212,8.7289367,143.21,143.14,20.0]
[1724281838720,6.9832,143.2,143.13,22.7711]
[1724281838885,1.7458968,143.2,143.11,5.03519325]
[1724281839223,1.7458968,143.2,143.09,22.7711]
[1724281839224,32.84,143.19,143.09,22.7711]
[1724281839390,39.825,143.17,143.1,5.03582498]
[1724281839588,39.825,143.17,143.09,22.7711]
[1724281840798,6.9853,143.16,143.08,20.0]
[1724281841000,6.9853,143.16,143.09,5.03596381]
[1724281841190,6.9853,143.16,143.08,20.0]
[1724281841393,6.9853,143.16,143.09,5.03596361]
[1724281841598,6.9853,143.16,143.08,20.0]
[1724281841901,8.73191974,143.16,143.09,5.03593628]
[1724281842210,8.73191974,143.16,143.1,0.25098]
[1724281842513,8.73191974,143.16,143.09,50.28693854]
[1724281842713,6.9853,143.16,143.09,45.25098]
[1724281842898,32.84,143.17,143.09,45.25098]
[1724281842899,39.8248,143.17,143.09,45.25098]
[1724281844110,7.30657116,143.16,143.09,45.25098]
[1724281847027,7.30657116,143.16,143.11,32.84]
[1724281847215,7.30657116,143.16,143.12,45.25098]
[1724281855200,6.9837,143.19,143.12,45.25098]
[1724281855400,14.28850589,143.19,143.12,45.25098]
[1724281855642,14.28850589,143.19,143.12,0.25098]
[1724281856004,7.30480589,143.19,143.12,0.25098]
[1724281858837,7.30480589,143.19,143.13,34.58898637]
[1724281859009,7.30480589,143.19,143.14,0.25098]
[1724281860423,7.30480589,143.19,143.13,0.25098]
[1724281860625,7.30480589,143.19,143.14,0.25098]
[1724281860929,7.30480589,143.19,143.12,0.25098]
[1724281864547,7.30480589,143.19,143.13,13.13]
[1724281864734,7.30480589,143.19,143.14,0.25098]
[1724281868325,7.30480589,143.19,143.15,13.13]
[1724281868532,6.0394,143.2,143.17,13.13]
[1724281869927,15.3432,143.21,143.19,13.13]
[1724281870558,6.2979,143.25,143.2,0.12549]
[1724281870725,6.2979,143.25,143.21,13.13]
[1724281871150,15.6917,143.26,143.23,13.13]
[1724281872473,15.6917,143.26,143.2,0.12549]
[1724281872627,1.74559295,143.25,143.19,32.81]
[1724281872834,6.2573,143.24,143.17,32.81]
[1724281874526,13.2387,143.24,143.17,32.81]
[1724281874743,6.2573,143.24,143.18,0.12549]
[1724281876156,6.2573,143.24,143.18,0.25098]
[1724281877632,6.2573,143.24,143.18,45.25098]
[1724281879363,6.2573,143.24,143.19,32.81]
[1724281879567,6.2573,143.24,143.2,0.12549]
[1724281880629,6.2573,143.24,143.2,0.25098]
[1724281882144,6.2573,143.24,143.21,32.81]
[1724281884361,15.6917,143.26,143.22,0.12549]
[1724281884563,15.6917,143.26,143.23,32.81]
[1724281884871,15.6917,143.26,143.24,1.39610989]
[1724281885045,6.555,143.28,143.24,1.52159989]
[1724281885565,6.555,143.28,143.25,32.81]
[1724281885855,6.555,143.28,143.26,0.12549]
[1724281886061,6.555,143.28,143.25,32.93549]
[1724281886262,6.555,143.28,143.25,0.12549]
[1724281888539,15.4381,143.29,143.25,0.12549]
[1724281889440,15.4381,143.29,143.26,32.81]
[1724281889637,6.2732,143.32,143.27,0.25098]
[1724281889857,6.2732,143.32,143.27,1.64667411]
[1724281890371,16.2164,143.33,143.28,32.81]
[1724281890548,16.2164,143.33,143.29,0.25098]
[1724281890750,16.2164,143.33,143.29,45.25098]
[1724281891338,6.2732,143.36,143.3,32.81]
[1724281891537,6.2732,143.36,143.31,0.12549]
[1724281892148,6.2732,143.36,143.3,32.81]
[1724281892356,6.2732,143.36,143.29,0.25098]
[1724281892555,6.2732,143.36,143.3,0.12549]
[1724281893275,6.2732,143.36,143.29,0.25098]
[1724281895573,6.2732,143.36,143.29,45.25098]
[1724281895870,15.5236,143.34,143.27,10.11407259]
[1724281896064,1.74451821,143.33,143.27,10.11407259]
[1724281896579,1.74451275,143.32,143.27,13.11]
[1724281896948,15.5236,143.34,143.27,13.11]
[1724281897564,15.5236,143.34,143.28,0.12549]
[1724281900269,15.5236,143.34,143.28,78.02098]
[1724281902274,15.5236,143.34,143.28,33.02098]
[1724281905474,15.5236,143.34,143.28,0.25098]
[1724281906882,15.5236,143.34,143.3,32.77]
[1724281907181,15.5236,143.34,143.31,0.12549]
[1724281907913,15.5236,143.34,143.31,0.25098]
[1724281912381,15.5236,143.34,143.28,10.11407259]
[1724281912573,15.5236,143.34,143.29,0.12549]
[1724281912766,15.5236,143.34,143.29,32.77]
[1724281913083,15.5236,143.34,143.3,0.25098]
[1724281913273,15.5236,143.34,143.3,45.25098]
[1724281915186,15.5236,143.34,143.3,0.25098]
[1724281915363,15.5236,143.34,143.29,0.25098]
[1724281915964,15.5236,143.34,143.29,0.12549]
[1724281916172,15.5236,143.34,143.29,0.25098]
[1724281916571,15.5236,143.34,143.29,0.12549]
[1724281917196,15.5236,143.34,143.26,42.88407259]
[1724281917383,1.74448229,143.33,143.26,42.88407259]
[1724281917692,15.5236,143.34,143.26,42.88407259]
[1724281917693,1.74462608,143.32,143.26,42.88407259]
[1724281917898,15.5236,143.34,143.26,42.88407259]
[1724281918071,15.5236,143.34,143.26,10.11407259]
[1724281918072,6.6179,143.33,143.26,10.11407259]
[1724281918280,15.6446,143.32,143.23,10.11407259]
[1724281918477,15.6446,143.32,143.25,13.11]
[1724281918676,15.6446,143.32,143.25,23.22407259]
[1724281918976,15.6446,143.32,143.27,13.11]
[1724281919195,15.6446,143.32,143.29,13.11]
[1724281920788,1.74458591,143.31,143.27,13.11]
[1724281920988,15.6446,143.32,143.27,13.11]
[1724281922067,15.6446,143.32,143.28,0.12549]
[1724281923199,15.6446,143.32,143.29,13.11]
[1724281923502,15.6446,143.32,143.31,13.11]
[1724281923881,15.1935,143.36,143.31,13.11]
[1724281924198,15.1935,143.36,143.31,13.23549]
[1724281925297,7.29549155,143.39,143.35,13.11]
[1724281925596,15.6974,143.4,143.35,13.11]
[1724281926091,15.6974,143.4,143.33,13.11]
[1724281926497,15.6974,143.4,143.32,32.74]
[1724281927209,15.6974,143.4,143.33,0.25098]
[1724281927575,15.6974,143.4,143.34,32.74]
[1724281928102,15.6974,143.4,143.35,0.12549]
[1724281930085,15.6974,143.4,143.35,0.25098]
[1724281930811,15.6974,143.4,143.36,32.74]
[1724281931311,15.6974,143.4,143.37,0.12549]
[1724281931700,15.6974,143.4,143.36,32.74]
[1724281932008,15.6974,143.4,143.35,0.12549]
[1724281932210,15.6974,143.4,143.35,45.25098]
[1724281933520,15.6974,143.4,143.36,32.74]
[1724281933711,15.6974,143.4,143.37,0.25098]
[1724281935302,15.6974,143.4,143.37,0.12549]
[1724281935513,17.44097743,143.4,143.36,0.12549]
[1724281935691,15.6974,143.4,143.36,0.25098]
[1724281938111,15.6974,143.4,143.32,32.74]
[1724281938112,1.74355587,143.39,143.32,32.74]
[1724281938410,1.74355587,143.39,143.33,65.12549]
[1724281938619,15.6974,143.4,143.34,0.12549]
[1724281939995,15.6974,143.4,143.35,10.11407259]
[1724281940211,15.6974,143.4,143.36,0.12549]
[1724281940909,15.6974,143.4,143.35,10.11407259]
[1724281940910,17.44099461,143.4,143.35,10.11407259]
[1724281941104,15.6974,143.4,143.35,10.11407259]
[1724281941997,15.6974,143.4,143.36,0.25098]
[1724281943201,15.6974,143.4,143.36,0.12549]
[1724281945592,15.6974,143.4,143.35,10.11407259]
[1724281947092,15.6974,143.4,143.36,79.38571829]
[1724281947314,15.6974,143.4,143.36,88.10505259]
[1724281947610,6.5468,143.41,143.37,10.11407259]
[1724281947815,6.5468,143.41,143.38,1.52014136]
[1724281948223,6.5468,143.41,143.38,0.12549]
[1724281948429,6.5468,143.41,143.36,13.21549]
[1724281949303,6.5468,143.41,143.36,0.12549]
[1724281949501,6.5468,143.41,143.36,13.21549]
[1724281950522,6.5468,143.41,143.34,13.09]
[1724281950735,6.5468,143.41,143.35,10.36505259]
[1724281951595,6.5468,143.41,143.36,13.09]
[1724281952421,6.5468,143.41,143.38,13.09]
[1724281954120,6.5468,143.41,143.37,0.12549]
[1724281954493,6.5468,143.41,143.36,13.09]
[1724281955317,6.5468,143.41,143.35,0.25098]
[1724281955925,6.5468,143.41,143.36,13.09]
[1724281957703,6.5468,143.41,143.37,10.36505259]
[1724281959129,6.5468,143.41,143.38,13.09]
[1724281961111,6.5468,143.41,143.37,10.23956259]
[1724281963105,6.5468,143.41,143.37,10.11407259]
[1724281967850,0.860215,143.42,143.37,10.11407259]
[1724281968029,0.860215,143.42,143.38,13.09]
[1724281969851,0.860215,143.42,143.38,23.20407259]
[1724281970026,0.860215,143.42,143.4,13.09]
[1724281976444,0.860215,143.42,143.39,0.25098]
[1724281976646,0.860215,143.42,143.38,10.11407259]
[1724281976824,0.860215,143.42,143.36,13.09]
[1724281977030,0.860215,143.42,143.37,1.74609288]
[1724281977220,0.860215,143.42,143.38,1.74609288]
[1724281977423,0.860215,143.42,143.36,5.02689911]
[1724281977625,0.860215,143.42,143.37,1.74609295]
[1724281977960,0.860215,143.42,143.38,1.74609295]
[1724281978123,0.860215,143.42,143.36,5.02691783]
[1724281978329,8.38426916,143.41,143.37,1.74610016]
[1724281978549,16.84692839,143.4,143.34,5.02726543]